bitfinex-derivatives/quotes_SOLF0:USTF0_20250928
["timestamp","ask_amount","ask_price","bid_price","bid_amount"]
[1759046890360,1.37978105,201.94,201.88,4.4557]
[1759046890754,9.26978105,201.94,201.88,12.4457]
[1759046891777,7.89,201.94,201.88,12.4457]
[1759046892358,9.26978105,201.94,201.88,7.99]
[1759046892862,7.89,201.91,201.86,18.56]
[1759046893064,7.89,201.91,201.85,7.99]
[1759046894261,12.3454,201.91,201.85,7.99]
[1759046895060,5.83538105,201.9,201.85,7.99]
[1759046896167,7.89,201.89,201.82,7.99]
[1759046896462,12.3458,201.89,201.82,7.99]
[1759046901762,7.89,201.89,201.82,12.447]
[1759046903468,7.89,201.89,201.83,7.9]
[1759046904668,8.84978105,201.92,201.85,7.9]
[1759046908168,13.30488105,201.92,201.85,7.9]
[1759046908975,7.47,201.9,201.85,7.9]
[1759046909274,7.47,201.9,201.82,7.9]
[1759046910569,7.47,201.9,201.83,4.4568]
[1759046910768,7.47,201.9,201.84,7.9]
[1759046918274,11.9256,201.9,201.84,7.9]
[1759046918774,13.30538105,201.9,201.84,7.9]
[1759046919876,8.84978105,201.9,201.84,7.9]
[1759046920583,7.47,201.9,201.84,7.9]
[1759046921581,4.456,201.88,201.81,4.4573]
[1759046921782,4.456,201.88,201.82,7.9]
[1759046922579,4.4553,201.91,201.8,120.2]
[1759046922778,3.44942864,201.9,201.81,7.9]
[1759046922980,7.47,201.91,201.81,7.9]
[1759046924586,7.47,201.91,201.86,7.9]
[1759046924785,11.9251,201.92,201.86,7.9]
[1759046925687,7.47,201.94,201.83,77.231]
[1759046925888,7.47,201.94,201.85,7.9]
[1759046925889,3.449856,201.93,201.85,7.9]
[1759046926088,7.47,201.94,201.85,7.9]
[1759046926790,7.47,201.94,201.9,7.9]
[1759046926987,7.47,201.94,201.89,4.4555]
[1759046927388,7.47,201.94,201.9,7.9]
[1759046927984,7.47,201.94,201.89,4.4555]
[1759046928181,7.47,201.94,201.9,7.9]
[1759046928885,4.4542,201.96,201.9,7.9]
[1759046929087,3.44944929,201.95,201.9,7.9]
[1759046929279,7.47,201.95,201.9,7.9]
[1759046929507,11.9242,201.96,201.9,7.9]
[1759046929684,3.44953678,201.95,201.9,7.9]
[1759046929989,11.9242,201.96,201.9,7.9]
[1759046930182,3.44953655,201.95,201.9,7.9]
[1759046930383,11.9242,201.96,201.89,4.4555]
[1759046930692,3.44960718,201.95,201.89,4.4555]
[1759046930990,4.4542,201.96,201.89,4.4555]
[1759046931188,7.47,201.95,201.88,7.9]
[1759046931400,11.9237,201.98,201.88,7.9]
[1759046931686,3.44926181,201.97,201.88,7.9]
[1759046931886,11.9237,201.98,201.88,7.9]
[1759046932088,3.44926057,201.97,201.88,7.9]
[1759046932287,11.9237,201.98,201.88,7.9]
[1759046932483,3.44934676,201.97,201.88,7.9]
[1759046932684,11.9237,201.98,201.91,12.355]
[1759046932886,3.44934676,201.97,201.91,12.355]
[1759046933086,11.9237,201.98,201.91,12.355]
[1759046934487,7.47,201.98,201.92,7.73]
[1759046938097,7.47,201.98,201.93,4.4547]
[1759046938287,7.47,201.98,201.94,7.73]
[1759046938487,7.47,201.98,201.93,4.4547]
[1759046938689,7.47,201.98,201.94,7.73]
[1759046938887,7.47,201.98,201.93,4.4547]
[1759046939889,7.47,201.98,201.94,7.73]
[1759046940088,7.47,201.98,201.93,4.4547]
[1759046940292,7.47,201.98,201.94,7.73]
[1759046940587,7.47,201.98,201.93,4.4547]
[1759046940791,7.89,201.99,201.93,12.1847]
[1759046942999,7.89,201.99,201.94,4.4544]
[1759046943498,7.89,202.01,201.95,7.73]
[1759046944291,12.3431,202.01,201.95,7.73]
[1759046946694,7.89,202.01,201.95,7.73]
[1759046947599,7.89,202.01,201.95,12.1842]
[1759046947796,7.89,202.04,201.96,7.73]
[1759046948503,7.89,202.04,201.99,7.73]
[1759046948902,7.89,202.04,201.98,4.4535]
[1759046949098,7.89,202.04,201.99,7.73]
[1759046949303,7.89,202.04,201.98,2.15925621]
[1759046949496,7.89,202.04,201.99,7.73]
[1759046949703,7.89,202.04,201.98,2.15925621]
[1759046950002,7.89,202.04,201.99,8.0]
[1759046950201,7.95,202.07,201.99,8.0]
[1759046950708,7.95,202.07,202.01,8.0]
[1759046951207,11.25792,202.1,202.02,8.0]
[1759046952310,11.25792,202.1,202.04,4.4522]
[1759046952510,11.25792,202.1,202.04,8.0]
[1759046953104,3.30792,202.1,202.04,8.0]
[1759046953308,3.30792,202.1,202.06,4.4517]
[1759046953505,3.30792,202.1,202.07,8.0]
[1759046954109,11.25792,202.1,202.07,8.0]
[1759046955314,3.30792,202.1,202.06,4.4517]
[1759046955510,3.30792,202.1,202.07,8.0]
[1759046956014,7.95,202.09,202.05,8.0]
[1759046956213,3.30792,202.1,202.05,8.0]
[1759046956506,7.95,202.09,202.05,8.0]
[1759046956914,3.30792,202.1,202.05,8.0]
[1759046957117,7.95,202.09,202.05,8.0]
[1759046958812,3.30792,202.1,202.05,8.0]
[1759046959613,7.95,202.09,202.05,8.0]
[1759046959911,3.30792,202.1,202.05,8.0]
[1759046960106,7.95,202.09,202.05,8.0]
[1759046960506,7.95,202.09,202.04,4.4523]
[1759046960716,7.95,202.09,202.05,8.0]
[1759046961207,3.30792,202.1,202.05,8.0]
[1759046961408,7.95,202.09,202.02,120.18]
[1759046962014,3.30792,202.1,202.02,120.18]
[1759046962314,7.95,202.09,202.02,120.18]
[1759046962614,7.95,202.09,202.03,8.0]
[1759046963514,7.95,202.09,202.03,12.4524]
[1759046963912,7.95,202.09,202.03,8.0]
[1759046965712,7.95,202.09,202.03,12.4524]
[1759046971717,3.30792,202.1,202.06,7.61]
[1759046971926,3.30792,202.1,202.03,7.61]
[1759046972623,3.30792,202.1,202.05,4.4519]
[1759046973021,10.89792,202.1,202.06,7.61]
[1759046973241,10.89792,202.1,202.07,7.61]
[1759046973620,10.89792,202.1,202.07,4.4515]
[1759046973924,3.30792,202.1,202.07,4.4515]
[1759046974119,3.30792,202.1,202.08,7.61]
[1759046974531,3.30792,202.1,202.07,4.4515]
[1759046975623,10.89792,202.1,202.08,7.61]
[1759046978529,10.89792,202.1,202.02,4.4526]
[1759046978530,7.59,202.09,202.02,4.4526]
[1759046978730,7.59,202.09,202.03,7.61]
[1759046980330,3.30792,202.1,202.03,7.61]
[1759046982533,3.30792,202.1,202.05,1.37838226]
[1759046982836,3.30792,202.1,202.08,7.61]
[1759046983036,3.30792,202.1,202.07,4.4515]
[1759046983436,3.30792,202.1,202.08,7.61]
[1759046983840,3.30792,202.1,202.07,4.4515]
[1759046984039,3.30792,202.1,202.08,7.61]
[1759046984241,3.30792,202.1,202.07,4.4515]
[1759046984836,3.30792,202.1,202.08,7.61]
[1759046985043,3.30792,202.1,202.07,4.4515]
[1759046985341,3.30792,202.1,202.08,7.61]
[1759046985538,3.30792,202.1,202.07,4.4515]
[1759046985738,3.30792,202.1,202.08,7.61]
[1759046985940,3.30792,202.1,202.07,4.4515]
[1759046986842,3.30792,202.1,202.08,7.61]
[1759046987038,3.30792,202.1,202.07,4.4515]
[1759046987241,3.30792,202.1,202.08,7.61]
[1759046989945,3.30792,202.1,202.07,4.4515]
[1759046990145,3.30792,202.1,202.08,7.61]
[1759046990338,3.30792,202.1,202.07,5.82988226]
[1759046990539,3.30792,202.1,202.08,4.4513]
[1759046990736,3.30792,202.1,202.09,7.61]
[1759046991339,3.30792,202.1,202.09,8.98838226]
[1759046994147,2.69943326,202.1,202.09,8.98838226]
[1759046994343,2.69943326,202.1,202.09,9.48838226]
[1759046994841,7.69,202.19,202.09,9.48838226]
[1759046995038,11.15210384,202.18,202.12,1.37838226]
[1759046995244,11.15210384,202.17,202.12,1.37838226]
[1759046995443,7.69,202.17,202.12,1.37838226]
[1759046996150,7.69,202.17,202.14,7.68]
[1759046996349,7.69,202.17,202.13,4.4502]
[1759046997252,7.69,202.17,202.14,7.68]
[1759046999154,7.69,202.17,202.13,4.4502]
[1759046999346,9.06838226,202.2,202.14,7.68]
[1759046999654,7.69,202.18,202.15,7.68]
[1759046999854,1.37838226,202.2,202.15,7.68]
[1759047000046,7.69,202.18,202.15,7.68]
[1759047000249,1.37838226,202.2,202.14,4.45]
[1759047000451,7.69,202.18,202.12,12.1305]
[1759047001046,7.69,202.18,202.13,4.4502]
[1759047001449,1.37838226,202.19,202.13,4.4502]
[1759047001650,7.69,202.18,202.13,4.4502]
[1759047001851,1.37838226,202.19,202.13,4.4502]
[1759047002242,1.37838226,202.16,202.1,4.4509]
[1759047002451,4.4492,202.18,202.01,7.68]
[1759047002452,7.69,202.11,202.01,7.68]
[1759047002651,1.37838226,202.1,202.03,7.68]
[1759047002850,7.69,202.09,202.03,7.68]
[1759047003847,7.69,202.09,202.06,4.4517]
[1759047004052,7.69,202.09,202.03,7.68]
[1759047005456,1.37838226,202.08,202.03,7.68]
[1759047005656,7.69,202.07,202.01,120.22]
[1759047006452,7.69,202.07,202.01,124.6728]
[1759047009852,7.69,202.07,202.02,7.78]
[1759047010863,7.69,202.07,202.01,124.6728]
[1759047011063,7.69,202.07,202.02,7.78]
[1759047011252,7.69,202.07,202.01,124.6728]
[1759047011560,7.69,202.07,202.02,7.78]
[1759047011956,8.69838226,202.08,202.02,7.78]
[1759047019668,8.69838226,202.08,202.02,12.2326]
[1759047028490,7.32,202.08,202.02,12.2326]
[1759047031584,8.87838226,202.1,202.04,7.75]
[1759047033686,13.32948226,202.1,202.04,7.75]
[1759047034982,7.5,202.1,202.03,1.37838226]
[1759047035179,8.87838226,202.13,202.06,7.75]
[1759047035877,7.5,202.13,202.06,7.75]
[1759047036585,7.5,202.13,202.06,12.2019]
[1759047039386,11.9504,202.13,202.06,12.2019]
[1759047039587,7.5,202.11,202.06,7.75]
[1759047039883,1.37838226,202.08,202.01,127.79]
[1759047040586,1.37838226,202.08,202.02,4.4527]
[1759047041290,7.5,202.07,202.02,4.4527]
[1759047041790,1.37838226,202.08,202.02,4.4527]
[1759047042188,7.5,202.07,202.02,4.4527]
[1759047042490,1.37838226,202.08,202.02,4.4527]
[1759047042687,7.5,202.07,202.03,7.75]
[1759047042883,5.82998226,202.08,202.03,7.75]
[1759047043086,7.5,202.07,202.03,7.75]
[1759047043585,5.82998226,202.08,202.03,7.75]
[1759047043786,7.5,202.07,202.02,4.4527]
[1759047044187,7.5,202.07,202.03,7.75]
[1759047044380,11.9518,202.07,202.02,7.75]
[1759047044584,7.5,202.06,202.0,7.75]
[1759047044780,7.5,202.05,201.94,2.15507937]
[1759047044989,9.65507937,202.05,201.95,7.75]
[1759047045188,4.4529,202.02,201.95,7.75]
[1759047045389,7.5,202.01,201.95,7.75]
[1759047047492,2.15507937,202.05,201.92,7.75]
[1759047047493,7.5,201.99,201.92,7.75]
[1759047047886,11.9536,201.99,201.92,7.75]
[1759047048889,7.5,201.99,201.93,4.4547]
[1759047049590,7.5,201.99,201.94,7.75]
[1759047049898,7.5,201.99,201.93,12.2047]
[1759047058799,4.4526,202.03,201.94,7.53]
[1759047058992,4.4526,202.03,201.92,69.3]
[1759047058993,7.66,202.03,201.93,7.53]
[1759047059196,7.66,202.03,201.94,2.15507937]
[1759047059392,7.66,202.03,201.94,71.44717937]
[1759047059597,7.66,202.1,201.98,7.53]
[1759047059897,7.66,202.08,201.99,7.53]
[1759047060802,7.66,202.08,201.98,120.2]
[1759047060803,12.1116,202.08,202.01,7.53]
[1759047061404,7.66,202.05,202.01,7.53]
[1759047062201,4.452,202.06,202.01,7.53]
[1759047062407,7.66,202.05,202.01,7.53]
[1759047062604,4.452,202.06,202.01,7.53]
[1759047063107,7.66,202.05,202.01,7.53]
[1759047063313,4.452,202.06,202.01,7.53]
[1759047063607,7.66,202.05,201.99,7.53]
[1759047064609,7.66,202.05,202.0,4.4531]
[1759047064803,7.66,202.05,202.01,7.53]
[1759047066308,7.66,202.05,202.0,4.4531]
[1759047066608,7.66,202.08,202.02,7.53]
[1759047066902,12.1116,202.08,202.02,7.53]
[1759047070515,4.4518,202.07,202.02,7.53]
[1759047071310,7.48,202.06,202.02,7.53]
[1759047071713,4.4518,202.07,202.02,7.53]
[1759047072014,7.48,202.06,202.02,7.53]
[1759047072413,4.4518,202.07,202.02,7.53]
[1759047072608,7.48,202.06,202.02,7.53]
[1759047072909,4.4518,202.07,202.02,7.53]
[1759047073113,7.48,202.06,202.02,7.53]
[1759047073312,4.4518,202.07,202.02,7.53]
[1759047073614,7.48,202.06,202.02,7.53]
[1759047074508,7.48,202.06,202.01,8.11]
[1759047075213,11.9318,202.07,202.01,8.11]
[1759047076614,4.452,202.06,202.01,8.11]
[1759047076816,4.452,202.06,202.0,4.453]
[1759047077010,4.452,202.06,202.01,8.11]
[1759047077211,4.452,202.06,202.0,4.453]
[1759047077806,4.452,202.06,202.01,8.11]
[1759047078012,4.452,202.06,202.0,4.453]
[1759047078218,7.48,202.07,202.01,12.5628]
[1759047079014,7.48,202.07,202.03,8.11]
[1759047079218,7.48,202.13,202.01,8.11]
[1759047079423,7.48,202.11,202.01,8.11]
[1759047079619,7.48,202.09,202.01,8.11]
[1759047080718,7.48,202.09,201.99,8.11]
[1759047081020,7.48,202.07,201.98,120.2]
[1759047081220,7.48,202.02,201.96,8.11]
[1759047081929,7.48,202.02,201.92,120.16]
[1759047082117,7.48,202.02,201.93,8.11]
[1759047082317,9.63507937,202.02,201.93,8.11]
[1759047083628,12.2936,201.99,201.93,8.11]
[1759047090223,4.4538,201.98,201.93,8.11]
[1759047090923,7.84,201.97,201.93,8.11]
[1759047091329,7.84,201.97,201.92,120.16]
[1759047091525,7.84,201.97,201.93,8.11]
[1759047092126,7.84,201.97,201.92,124.6148]
[1759047092824,7.84,201.97,201.93,8.11]
[1759047093015,7.84,201.97,201.92,124.6148]
[1759047093220,7.84,201.97,201.93,8.11]
[1759047093529,4.4538,201.98,201.93,8.11]
[1759047094029,7.84,201.97,201.93,8.11]
[1759047094225,7.84,201.97,201.92,120.16]
[1759047094523,7.84,201.97,201.93,8.11]
[1759047094722,7.84,201.97,201.92,120.16]
[1759047094923,7.84,201.97,201.93,8.11]
[1759047095531,7.84,201.97,201.92,124.6148]
[1759047095927,7.84,201.97,201.93,8.11]
[1759047096127,7.84,201.97,201.92,124.6148]
[1759047096331,7.84,201.97,201.93,8.11]
[1759047096626,7.84,201.97,201.92,124.6148]
[1759047097128,7.84,201.97,201.93,8.11]
[1759047097328,7.84,201.97,201.92,124.6148]
[1759047098224,7.84,201.97,201.93,8.11]
[1759047098822,7.84,201.97,201.92,124.6148]
[1759047099232,7.84,201.97,201.93,8.11]
[1759047099431,7.84,201.97,201.92,124.6148]
[1759047099634,7.84,201.97,201.93,8.11]
[1759047099835,7.84,201.97,201.92,124.6148]
[1759047101335,7.84,201.97,201.93,8.11]
[1759047101730,7.84,201.97,201.92,124.6148]
[1759047101938,7.84,201.97,201.93,8.11]
[1759047102136,7.84,201.97,201.92,124.6148]
[1759047102831,7.84,201.97,201.93,8.11]
[1759047103933,7.84,201.97,201.92,124.6148]
[1759047104335,7.84,201.97,201.93,8.11]
[1759047104532,7.84,201.97,201.92,124.6148]
[1759047104734,12.293,202.01,201.93,8.11]
[1759047105242,12.293,202.01,201.95,4.4542]
[1759047105435,4.453,202.01,201.95,4.4542]
[1759047106039,7.84,202.0,201.95,4.4542]
[1759047106240,7.84,202.0,201.96,8.11]
[1759047106639,7.84,202.0,201.95,4.4542]
[1759047107140,7.84,202.0,201.96,8.11]
[1759047107439,7.84,202.0,201.95,4.4542]
[1759047107842,7.84,202.0,201.96,8.11]
[1759047108338,4.453,202.01,201.96,8.11]
[1759047108732,7.84,202.0,201.96,8.11]
[1759047109130,4.453,202.01,201.96,8.11]
[1759047109344,7.84,202.0,201.96,8.11]
[1759047109534,4.453,202.01,201.96,8.11]
[1759047109742,7.84,202.0,201.96,8.11]
[1759047109936,7.84,202.0,201.95,4.4542]
[1759047110143,4.453,202.01,201.95,4.4542]
[1759047110357,12.293,202.01,201.95,12.5642]
[1759047120150,12.293,202.01,201.95,4.4542]
[1759047120451,5.52394683,202.1,201.92,120.16]
[1759047120452,7.42,202.04,201.96,9.01999244]
[1759047120652,7.42,202.04,201.99,7.64]
[1759047120949,7.42,202.06,201.99,7.64]
[1759047121144,3.47306164,202.05,201.99,7.64]
[1759047121354,7.42,202.05,201.99,7.64]
[1759047121553,11.8722,202.05,201.99,7.64]
[1759047125149,3.47564547,202.04,201.98,5.83349244]
[1759047125357,7.42,202.04,201.99,7.64]
[1759047125554,4.4522,202.05,201.98,5.83349244]
[1759047125850,10.89564547,202.04,201.99,7.64]
[1759047126050,7.42,202.04,201.99,7.64]
[1759047126252,7.42,202.04,201.98,5.83349244]
[1759047126453,11.8717,202.07,201.99,7.64]
[1759047126652,11.8717,202.07,202.02,7.64]
[1759047127753,4.4517,202.07,202.01,5.83289244]
[1759047127953,4.4517,202.07,202.02,7.64]
[1759047128154,4.4517,202.07,202.01,5.83289244]
[1759047128453,11.8717,202.07,202.01,5.83289244]
[1759047128651,11.8717,202.07,202.02,7.64]
[1759047129046,7.42,202.06,202.01,5.83289244]
[1759047129247,11.8717,202.07,202.01,13.47289244]
[1759047130853,11.8717,202.07,202.01,12.0929]
[1759047131852,7.92,202.13,202.01,1.37999244]
[1759047132058,74.74434683,202.16,202.03,1.37999244]
[1759047132059,9.29999244,202.11,202.03,1.37999244]
[1759047132253,7.92,202.11,202.05,1.37999244]
[1759047132454,7.92,202.14,202.08,8.02]
[1759047132656,3.4647437,202.13,202.08,8.02]
[1759047132857,7.92,202.14,202.08,8.02]
[1759047133048,0.62813546,202.15,202.08,8.02]
[1759047133254,7.92,202.17,202.1,8.02]
[1759047133458,3.46145636,202.16,202.1,8.02]
[1759047133658,12.3695,202.17,202.1,8.02]
[1759047133956,12.3695,202.17,202.05,69.2552]
[1759047133957,3.46145585,202.16,202.11,1.37999244]
[1759047134151,7.92,202.2,202.12,8.02]
[1759047134350,3.45839802,202.19,202.12,8.02]
[1759047134551,7.92,202.2,202.13,4.4503]
[1759047135552,7.92,202.2,202.14,8.02]
[1759047137261,7.92,202.23,202.15,9.39999244]
[1759047137966,7.92,202.23,202.15,13.84969244]
[1759047138164,7.92,202.23,202.16,8.02]
[1759047141965,7.92,202.2,202.16,8.02]
[1759047142169,1.37999244,202.21,202.16,8.02]
[1759047142366,7.92,202.2,202.16,8.02]
[1759047142768,1.37999244,202.21,202.16,8.02]
[1759047142968,7.92,202.2,202.16,8.02]
[1759047143382,1.37999244,202.21,202.16,8.02]
[1759047143580,7.4,202.2,202.16,8.02]
[1759047143882,1.37999244,202.21,202.16,8.02]
[1759047144077,7.4,202.2,202.16,8.02]
[1759047144277,1.37999244,202.21,202.16,8.02]
[1759047144778,7.4,202.2,202.16,8.02]
[1759047144975,1.37999244,202.21,202.16,8.02]
[1759047145171,8.77999244,202.23,202.16,7.59]
[1759047146278,7.4,202.2,202.12,1.37999244]
[1759047146481,7.4,202.2,202.12,8.96999244]
[1759047148681,7.4,202.2,202.12,13.42039244]
[1759047149381,7.4,202.2,202.12,12.0404]
[1759047149675,1.37999244,202.19,202.12,7.59]
[1759047149872,7.4,202.18,202.12,7.59]
[1759047153887,1.37999244,202.17,202.12,7.59]
[1759047154083,1.37999244,202.15,202.09,7.59]
[1759047154683,7.4,202.14,202.07,7.59]
[1759047155287,69.1994,202.22,202.06,1.37999244]
[1759047155288,1.37999244,202.17,202.09,7.59]
[1759047155587,1.37999244,202.17,202.08,1.37999244]
[1759047155588,7.4,202.18,202.11,7.59]
[1759047156589,11.8494,202.18,202.11,7.59]
[1759047177101,3.46614499,202.17,202.11,7.59]
[1759047177309,11.8494,202.18,202.11,7.59]
[1759047177512,3.46614499,202.17,202.11,7.59]
[1759047177806,11.8494,202.18,202.11,7.59]
[1759047177998,3.46614499,202.17,202.11,7.59]
[1759047178195,11.8494,202.18,202.11,7.59]
[1759047178391,3.46637921,202.17,202.11,7.59]
[1759047178594,11.8494,202.18,202.11,7.59]
[1759047178790,3.46637921,202.17,202.11,7.59]
[1759047179001,11.8494,202.18,202.11,7.59]
[1759047179202,3.46637921,202.17,202.11,7.59]
[1759047179398,11.8494,202.18,202.11,7.59]
[1759047179599,3.46644937,202.17,202.11,7.59]
[1759047179803,11.8494,202.18,202.11,7.59]
[1759047180093,3.46644937,202.17,202.11,7.59]
[1759047180300,11.8494,202.18,202.11,7.59]
[1759047180501,3.46634515,202.17,202.11,7.59]
[1759047180804,7.41,202.16,202.1,7.75]
[1759047182298,7.41,202.14,202.06,7.75]
[1759047182892,11.8603,202.14,202.06,7.75]
[1759047183092,7.41,202.14,202.06,7.75]
[1759047183500,4.4504,202.13,202.06,7.75]
[1759047183706,7.41,202.14,202.06,7.75]
[1759047183895,3.46740285,202.13,202.06,7.75]
[1759047184200,4.4511,202.1,202.06,7.75]
[1759047184403,7.41,202.09,202.06,7.75]
[1759047184703,4.4511,202.1,202.06,7.75]
[1759047184905,7.41,202.09,202.06,7.75]
[1759047185104,4.4511,202.1,202.06,7.75]
[1759047185302,7.41,202.09,202.06,7.75]
[1759047185504,4.4511,202.1,202.06,7.75]
[1759047185706,7.41,202.09,202.06,7.75]
[1759047186109,7.41,202.09,202.06,11.89942614]
[1759047187395,11.8613,202.09,202.06,11.89942614]
[1759047187602,7.41,202.11,202.05,4.14942614]
[1759047187803,7.41,202.11,202.04,4.14942614]
[1759047188605,4.4516,202.08,202.04,4.14942614]
[1759047188797,11.8616,202.08,202.05,7.75]
[1759047189000,7.41,202.12,202.05,7.75]
[1759047189403,7.41,202.12,202.05,11.89942614]
[1759047190396,12.0811,202.1,202.05,4.14942614]
[1759047190799,12.0811,202.1,202.06,7.99]
[1759047190800,7.63,202.09,202.06,7.99]
[1759047192611,4.4514,202.09,202.04,12.13942614]
[1759047192799,7.63,202.08,202.05,7.99]
[1759047195406,12.0816,202.08,202.05,7.99]
[1759047195609,7.63,202.07,202.05,7.99]
[1759047198814,7.63,202.15,202.06,7.99]
[1759047199018,7.63,202.15,202.08,7.99]
[1759047199415,12.08,202.15,202.08,7.99]
[1759047199815,7.63,202.15,202.08,7.99]
[1759047201016,7.63,202.15,202.08,12.13942614]
[1759047201719,7.63,202.15,202.08,16.59072614]
[1759047204320,7.63,202.15,202.09,12.2211]
[1759047204521,7.38,202.16,202.09,8.60052614]
[1759047204721,7.38,202.14,202.08,4.14942614]
[1759047204921,7.38,202.13,202.06,7.77]
[1759047205626,4.4507,202.12,202.06,7.77]
[1759047206028,7.38,202.11,202.06,7.77]
[1759047206325,7.38,202.11,202.05,7.77]
[1759047215130,7.38,202.11,202.05,11.91942614]
[1759047215533,7.38,202.11,202.05,7.77]
[1759047219636,11.8309,202.11,202.05,7.77]
[1759047220139,7.38,202.11,202.05,7.77]
[1759047221634,11.8311,202.1,202.02,4.4527]
[1759047221836,11.8311,202.1,202.03,7.77]
[1759047224043,7.38,202.1,202.03,7.77]
[1759047225543,4.4516,202.08,202.03,7.77]
[1759047225735,11.8316,202.08,202.01,7.77]
[1759047228339,4.4518,202.07,202.01,7.77]
[1759047228535,76.6191,202.1,202.0,5.53256818]
[1759047228743,71.38867006,202.11,201.99,5.53256818]
[1759047228744,7.38,202.08,201.99,5.53256818]
[1759047229139,69.2421,202.09,201.98,13.30256818]
[1759047229140,189.2621,202.09,201.98,13.30256818]
[1759047229436,7.38,202.08,201.98,13.30256818]
[1759047229637,7.38,202.08,201.99,5.53256818]
[1759047229946,7.38,202.11,202.01,7.77]
[1759047230637,4.4511,202.1,202.03,12.2223]
[1759047230842,7.38,202.09,202.03,12.2223]
[1759047241457,11.8313,202.09,202.03,7.77]
[1759047246059,11.8313,202.09,201.98,83.98920666]
[1759047246060,7.38,202.09,202.05,7.58]
[1759047246366,7.38,202.09,202.05,4.4519]
[1759047246556,12.2804,202.13,202.07,7.58]
[1759047246755,11.26086253,202.12,202.07,7.58]
[1759047246962,11.26086253,202.11,202.07,7.58]
[1759047247153,11.26086253,202.1,202.07,7.58]
[1759047247354,7.83,202.1,202.07,7.58]
[1759047247564,7.83,202.14,202.07,7.58]
[1759047247762,7.83,202.12,202.07,7.58]
[1759047248064,7.83,202.1,202.07,7.58]
[1759047249264,3.43399645,202.09,202.07,7.58]
[1759047249465,7.83,202.1,202.07,7.58]
[1759047249665,3.43399634,202.09,202.07,7.58]
[1759047249964,7.83,202.1,202.07,7.58]
[1759047250160,3.43399572,202.09,202.07,7.58]
[1759047250362,7.83,202.1,202.07,7.58]
[1759047250562,3.43398043,202.09,202.07,7.58]
[1759047250858,7.83,202.1,202.07,7.58]
[1759047251070,3.43398055,202.09,202.07,7.58]
[1759047251362,7.83,202.1,202.06,1.37893218]
[1759047251559,3.43396401,202.09,202.07,7.58]
[1759047251766,7.83,202.1,202.07,7.58]
[1759047251973,3.4339634,202.09,202.07,7.58]
[1759047252269,7.83,202.1,202.06,1.37893218]
[1759047252466,3.43394919,202.09,202.07,7.6]